Workbook

Sheet 03 декабря
I1: Утверждаю:
I2: Директор школы | L2: Н.П.Семенов
E4: МЕНЮ ДНЯ | K4: ='[1]3'!$B$1 -> 3 | L4: декабрь | M4: 2025 год.
D6: МБОУ"ПАВЛОВСКАЯ СОШ"
A7: 3
A8: РАЗДЕЛ | B8: № РЕЦ. | C8: БЛЮДО | H8: ВЫХОД | I8: ЦЕНА | J8: КАЛОРИЙ | K8: БЕЛКИ | L8: ЖИРЫ | M8: УГЛЕВО
H9: г | J9: НОСТЬ | M9: ДЫ
A10: ОВЗ | C10: 7-11 лет
B11: 93 | C11: ='[2]3'!$B$7 -> СУП МОЛОЧНЫЙС МАКАР,ИЗД, | H11: 200 | I11: ='[2]3'!$BK$7 -> 16.65 | J11: 147.6 | K11: 6.05 | L11: 5.6 | M11: 18.25
B12: 221№324 | C12: ='[2]3'!$B$8 -> КИСЕЛЬ | H12: 200 | I12: ='[2]3'!$BK$8 -> 4.02 | J12: 76 | K12: 0 | L12: 0 | M12: 20
B13: №8 | C13: ='[2]3'!$B$9 -> БАТОН | H13: 30 | I13: ='[2]3'!$BK$9 -> 3.00 | J13: 85.7 | K13: 2.4 | L13: 0.8 | M13: 16.7
C14: ИТОГО | H14: =SUM(H11:H13) -> 430 | I14: =SUM(I11:I13) -> 23.66 | J14: =SUM(J11:J13) -> 309.3 | K14: =SUM(K11:K13) -> 8.45 | L14: =SUM(L11:L13) -> 6.4 | M14: =SUM(M11:M13) -> 54.95
C15: от 12 и старше лет
B16: 93 | C16: ='[2]3'!$B$21 -> СУП МОЛОЧНЫЙС МАКАР,ИЗД, | H16: 200 | I16: ='[2]3'!$BK$21 -> 16.65 | J16: 147.6 | K16: 6.05 | L16: 5.6 | M16: 18.25
B17: 221№324 | C17: ='[2]3'!$B$22 -> КИСЕЛЬ | H17: 200 | I17: ='[2]3'!$BK$22 -> 4.02 | J17: 76 | K17: 0 | L17: 0 | M17: 20
B18: №8 | C18: ='[2]3'!$B$23 -> БАТОН | H18: 30 | I18: ='[2]3'!$BK$23 -> 3.00 | J18: 85.7 | K18: 2.4 | L18: 0.8 | M18: 16.7
C19: ИТОГО | H19: =SUM(H16:H18) -> 430 | I19: =SUM(I16:I18) -> 23.66 | J19: =SUM(J16:J18) -> 309.3 | K19: =SUM(K16:K18) -> 8.45 | L19: =SUM(L16:L18) -> 6.4 | M19: =SUM(M16:M18) -> 54.95
A20: 5-11 класс
C21: от 12 и старше лет
B22: №22 | C22: ='[1]3'!$B$21 -> САЛАТ ВИТАМИННЫЙ | H22: 100 | I22: ='[1]3'!$BK$21 -> 7.89 | J22: 88.3 | K22: 1.5 | L22: 4.5 | M22: 27
B23: 83№63(1) | C23: ='[1]3'!$B$22 -> СУП КАТРТОФЕЛЬНЫЙ С РИСОВОЙ КРУПОЙ | H23: 250 | I23: ='[1]3'!$BK$22 -> 3.14 | J23: 113 | K23: 2.6 | L23: 2.1 | M23: 19.3
B24: 180№135(1) | C24: ='[3]3'!$B$23 -> БИТОЧКИ РУБ,ИЗ МЯСА ПТИЦЫ ПАР, | H24: 100 | I24: ='[1]3'!$BK$23 -> 32.65 | J24: 245 | K24: 16.3 | L24: 15.58 | M24: 8.9
B25: 112№227(2) | C25: ='[1]3'!$B$24 -> МАКАРОНЫ ОТВАРНЫЕ | H25: 180 | I25: ='[1]3'!$BK$24 -> 9.34 | J25: 233 | K25: 6.5 | L25: 4.4 | M25: 40
B26: 207№310 | C26: ='[1]3'!$B$25 -> КОМПОТ ИЗ ЯГОД | H26: 200 | I26: ='[1]3'!$BK$25 -> 1.13 | J26: 70 | K26: 0.2 | L26: 0.1 | M26: 17.2
B27: 8№1.6 | C27: ='[1]3'!$B$26 -> ХЛЕБ | H27: 50 | I27: ='[1]3'!$BK$26 -> 3.25 | J27: 108.6 | K27: 3.96 | L27: 0.72 | M27: 1.38
C28: ='[1]3'!$B$27 -> 0 | I28: ='[1]3'!$BK$27 -> 0.00
C29: ='[1]3'!$B$28 -> 0 | I29: ='[1]3'!$BK$28 -> 0.00
C30: ИТОГО | H30: =SUM(H22:H29) -> 880 | I30: =SUM(I22:I29) -> 57.40 | J30: =SUM(J21:J29) -> 857.9 | K30: =SUM(K21:K29) -> 31.06 | L30: =SUM(L21:L29) -> 27.4 | M30: =SUM(M21:M29) -> 113.78
C31: Составил Агеева Г.Н. | K31: Повар Фролова Л.Н.
